Cogmind - Beta 14 @@@ ROGUE MODE // 2024.08.25 @ 23:56:04 Player: MadBadger Result: Destroyed by G-47 Trooper with Particle Gun Performance ------------- Evolutions (0) 0 Regions Visited (1) 200 Robots Destroyed (13) 65 Value Destroyed (231) 231 Prototype IDs (0) 0 Alien Tech Used (0) 0 Bonus (0) 0 TOTAL SCORE: 496 Bonus ------- None Cogmind --------- Core Integrity 0/250 Matter 400/400 Energy 96/100 System Corruption 2% Temperature Cool (9) Movement Hovering (130) Ox1 Location -10/Materials Parts ------- > --- POWER (1) -------- (None) > --- PROPULSION (2) --- Aluminum Leg Hover Unit > --- UTILITY (2) ------ Small Storage Unit Medium Matter Pod > --- WEAPON (2) ------- Medium Laser Small Laser > --- INVENTORY (8) ---- Light Ion Engine Small Laser Peak State ------------ > --- POWER ------------ Light Ion Engine > --- PROPULSION ------- Wheel Wheel > --- UTILITY ---------- (None) > --- WEAPON ----------- Particle Gun Light Assault Rifle > --- INVENTORY -------- Aluminum Leg Aluminum Leg EM Pulse Gun Small Laser Small Laser [Rating: 6] Favorites ----------- Power Light Ion Engine Engine Light Ion Engine Propulsion Wheel Leg Aluminum Leg Wheel Wheel Hover Unit Hover Unit Utility Medium Matter Pod Storage Medium Matter Pod Weapon Small Laser Energy Gun Small Laser Ballistic Gun Light Assault Rifle Build | -11 -10 ------- Run | Yrd Mat Slots Evolved . | . . Power . | . . Propulsion . | . . Utility . | . . Weapon . | . . Parts Attached 14 | 5 9 Power 1 | 1 . Engine 1 | 1 . Core . | . . Reactor . | . . Propulsion 5 | 2 3 Treads . | . . Leg 2 | . 2 Wheel 2 | 2 . Hover 1 | . 1 Flight . | . . Utility 2 | . 2 Device . | . . Storage 2 | . 2 Processor . | . . Hackware . | . . Protection . | . . Artifact . | . . Weapon 6 | 2 4 Energy Gun 5 | 1 4 Energy Cannon . | . . Ballistic Gun 1 | 1 . Ballistic Cannon . | . . Launcher . | . . Special Weapon . | . . Impact Weapon . | . . Slashing Weapon . | . . Piercing Weapon . | . . Special Melee Weapon . | . . Unidentified Prototypes . | . . Parts Lost 7 | . 7 Power 1 | . 1 Propulsion 3 | . 3 Utility . | . . Weapon 3 | . 3 Highest Loss Streak 6 | . 6 To Critical Strikes . | . . Average Slot Usage (%) 65 | . 65 Engine 5 | . 5 Leg 10 | . 10 Wheel 10 | . 10 Hover 3 | . 3 Storage 7 | . 7 Energy Gun 22 | . 22 Ballistic Gun 5 | . 5 Peak Build Rating 6 | 5 6 Average Rating 4 | 4 4 On Entrance 2 | . 5 Naked Turns . | . . Heaviest Build 10 | 5 10 Greatest Support 20 | 20 20 Greatest Overweight (x) 1 | . 1 Average Overweight (x) . | . . Largest Inventory Capacity 8 | 5 8 Average Capacity 5 | 5 5 Most Carried 5 | 5 5 Average Carried 3 | 4 2 Final Capacity 8 | 5 8 Final Carried 4 | 4 2 Class Distribution -------------------- 100% | Mutant Dominant Class ---------------- Mutant | -10/Materials Resources | -11 -10 ----------- Run | Yrd Mat Matter Collected 499 | 258 241 Remotely . | . . Salvage Created 458 | 40 418 Parts 22 | 3 19 Haulers Intercepted . | . . Recyclers Shooed 3 | . 3 Parts Field Recycled . | . . Retrieved Matter . | . . Parts Self-Destructed . | . . Prevented . | . . Kills | -11 -10 ------- Run | Yrd Mat Combat Hostiles Destroyed 5 | 1 4 Guns 5 | 1 4 Classes Destroyed 4 | 1 3 Worker 4 | . 4 Recycler 2 | . 2 Watcher 2 | . 2 Grunt 5 | 1 4 Best Kill Streak 4 | 1 4 Combat Bots Only 3 | 1 3 Max Kills in Single Turn 1 | 1 1 Gunslinging . | . . Exploded . | . . Melee . | . . Uniques/NPCs Destroyed . | . . Combat | -11 -10 -------- Run | Yrd Mat Hostile Shots Fired 97 | 1 96 Missed 28 | 1 27 Damage Taken 884 | 7 877 Core 262 | . 262 Absorbed by Shields . | . . Core Remaining (%) 100 | 100 . Volleys Fired 81 | 1 80 Largest 2 | 2 2 Hottest 90 | 60 90 Shots Fired 103 | 2 101 Gun 103 | 2 101 Cannon . | . . Launcher . | . . Special . | . . Kinetic 20 | 1 19 Thermal 80 | 1 79 Explosive . | . . Electromagnetic 3 | . 3 Robot Hit Streak 6 | 2 6 Robot Miss Streak 5 | . 5 Penetration Max . | . . Secondary Targets . | . . Shots Hit Robots 62 | 2 60 Core Hits 28 | 3 25 Critical Kills . | . . Critical Parts Destroyed . | . . Critical Strikes 1 | . 1 Burn 1 | . 1 Melee Attacks . | . . Impact . | . . Slashing . | . . Piercing . | . . Sneak Attacks . | . . Combat Hostiles . | . . Follow-up Attacks . | . . Damage Inflicted 812 | 35 777 Guns 789 | 18 771 Cannons . | . . Explosions . | . . Melee . | . . Ramming 23 | 17 6 Kinetic 109 | 7 102 Thermal 642 | 11 631 Explosive . | . . Electromagnetic 38 | . 38 Impact . | . . Slashing . | . . Piercing . | . . Highest Corruption 2 | 2 2 Average Corruption 2 | 2 2 Corruption Purged . | . . Corruption Blocked . | . . Effects 7 | 2 5 Message Errors 1 | . 1 Matter Fused 1 | 1 . Heat Flow Errors 2 | . 2 Energy Discharges 1 | . 1 Data Loss (minor) 2 | 1 1 Overload Shots . | . . Overflow Damage . | . . Projectiles . | . . Explosions . | . . Melee . | . . Knockbacks . | . . Impact . | . . Kinetic . | . . Secondary . | . . Self-Inflicted Damage 7 | 7 . Shots . | . . Rammed 3 | 3 . Targets Rammed 4 | 3 1 Kicked 1 | . 1 Crushed . | . . Highest Temperature 524 | 20 524 Average Temperature 203 | 15 205 Received Heat Transfer 513 | . 513 Effects 7 | . 7 Energy Bleed 1 | . 1 Interference 2 | . 2 Matter Decay 2 | . 2 Short Circuit 1 | . 1 Damage (minor) 1 | . 1 Siege Activations . | . . Robots Corrupted . | . . Combat Hostiles . | . . Parts Fried . | . . Impact Corruptions . | . . Robots Melted . | . . Combat Hostiles . | . . Parts Melted 1 | . 1 Heat Transferred 1592 | 25 1567 Parts Sabotaged . | . . Parts Stolen . | . . Parts Stripped . | . . Power Chain Reactions . | . . Alert | -11 -10 ------- Run | Yrd Mat Peak Influence 142 | 20 142 Initial . | . . Average 33 | 14 55 Maximum Alert Level . | . . Low Security (%) 100 | 100 100 Level 1 . | . . Level 2 . | . . Level 3 . | . . Level 4 . | . . Level 5 . | . . High Security . | . . Max Security . | . . Squads Dispatched 1 | . 1 Investigation . | . . Extermination . | . . Reinforcement 1 | . 1 Assault . | . . Garrison . | . . Intercept . | . . Searches Triggered . | . . Construction Impeded . | . . Haulers Reinforced . | . . Active Scanning Responses . | . . Cargo Convoy Interrupts . | . . Stealth | -11 -10 --------- Run | Yrd Mat Distress Signals 3 | . 3 Communications Jammed . | . . Distress Signals . | . . Times Spotted 12 | 1 11 Peak Tracking Total 5 | 1 5 Tactical Retreats . | . . Traps | -11 -10 ------- Run | Yrd Mat Traps Triggered . | . . Indirectly . | . . Trap Hack Attempts . | . . Triggered . | . . Disarmed . | . . Reprogrammed . | . . Reused . | . . Traps Extracted . | . . Installed . | . . Triggered . | . . Machines | -11 -10 ---------- Run | Yrd Mat Machines Disabled . | . . Max in Single Turn . | . . Machines Repaired . | . . Machines Dismantled . | . . Machines Sabotaged . | . . Overloaded Fab Kills . | . . Hacking | -11 -10 --------- Run | Yrd Mat Machines Accessed . | . . Terminals . | . . Fabricators . | . . Repair Stations . | . . Recycling Units . | . . Scanalyzers . | . . Garrison Access . | . . Total Hacks . | . . Successful . | . . Failed . | . . Catastrophic . | . . Database Lockouts . | . . Manual . | . . Terminals . | . . Fabricators . | . . Repair Stations . | . . Recycling Units . | . . Scanalyzers . | . . Garrison Access . | . . Terminal Hacks . | . . Fabricator Hacks . | . . Repair Station Hacks . | . . Recycling Unit Hacks . | . . Scanalyzer . | . . Garrison Access Hacks . | . . Unauthorized Hacks . | . . Terminals . | . . Fabricators . | . . Repair Stations . | . . Recycling Units . | . . Scanalyzers . | . . Garrison Access . | . . Data Cores Recovered . | . . Used . | . . Hacking Detections . | . . Full Trace Events . | . . Feedback Events . | . . Feedback Blocked . | . . Robot Schematics Acquired . | . . Robots Built . | . . Authchips . | . . Time . | . . Total Robot Build Rating . | . . Part Schematics Acquired . | . . Parts Built . | . . Authchips . | . . Time . | . . Total Part Build Rating . | . . Parts Repaired . | . . Time . | . . Parts Recycled . | . . Recycled Matter . | . . Retrieved Matter . | . . Retrieved Components . | . . Parts Scanalyzed . | . . Part Schematics Acquired . | . . Parts Damaged . | . . Bothacking | -11 -10 ------------ Run | Yrd Mat Used RIF Installer . | . . Robots Hacked . | . . Non-combat . | . . Combat . | . . Robot Hacks Applied . | . . Relay Couplers Released . | . . Fabnet Peak Effective % . | . . Robots Rewired . | . . Allies Hacked . | . . Hacks Repelled . | . . Allies | -11 -10 -------- Run | Yrd Mat Total Allies . | . . Largest Group . | . . Highest-Rated Group . | . . Highest-Rated Ally . | . . Total Orders . | . . Ally Attacks . | . . Total Damage . | . . Kills . | . . Allies Corrupted . | . . Allies Melted . | . . Intel | -11 -10 ------- Run | Yrd Mat Robot Analysis Total . | . . Derelict Logs Recovered . | . . Drone Launches . | . . Drone Recoveries . | . . Exploration | -11 -10 ------------- Run | Yrd Mat Turns Passed 870 | 474 396 Spaces Moved 444 | 245 199 Core 25 | 24 1 Treads . | . . Legs 61 | . 61 Wheels 334 | 221 113 Hover 24 | . 24 Flight . | . . Fastest Speed 50 | 50 50 Average Speed 86 | 77 98 Slowest Speed 130 | 80 130 Overloaded Moves . | . . Propulsion Burnouts . | . . Robots Hopped . | . . Cave-ins Triggered . | . . Exploration Rate (%) 17 | 15 20 Regions Visited 1 Branch Regions . Pre-discovered Areas . | . . Known Exits Taken . | . . Unknown Exits Taken 1 | 1 . Scrap Searched . | . . Spaces Dug . | . . Terrain Destroyed . | . . Melee . | . . Projectile . | . . AOE . | . . Terrain Rammed . | . . Walls Destroyed . | . . Machines Disabled . | . . Actions | -11 -10 --------- Run | Yrd Mat Total 832 | 528 304 Wait 269 | 264 5 Move 443 | 244 199 Hop . | . . Pick Up 18 | 10 8 Fast Attach . | . . Attach 13 | 5 8 Detach . | . . Swap 1 | . 1 Drop 3 | 1 2 Fire 81 | 1 80 Melee . | . . Ram 3 | 3 . Kick 1 | . 1 Crush . | . . Escape Stasis . | . . Rewire . | . . Trap . | . . Miscellaneous . | . . Route ------- -11/Scrapyard -10/Materials (discovered 1 exit: [*Min]) History --------- Turn | Location | Event 2 | -11/Scrapyard | Met Revision 17 51 | -11/Scrapyard | Discovered new exit (range 8) 475 | -11/Scrapyard | Entered Materials 517 | -10/Materials | Build established: Mutant 580 | -10/Materials | Discovered new exit (range 16) 646 | -10/Materials | Core integrity fell below 50% 674 | -10/Materials | Lost 6 parts (1p2n3w) 837 | -10/Materials | Core integrity fell below 20% 871 | -10/Materials | Destroyed by G-47 Trooper with Particle Gun Last Messages --------------- Acquired Sml. Laser. Acquired Lgt. Ion Engine. Acquired Med. Matter Pod. Extracted 50 matter. Acquired 8 matter. Acquired Hover Unit. K-01 Serf collects debris. Acquired Sml. Storage Unit. K-01 Serf collects debris. Acquired 30 matter. K-01 Serf destroyed. R-06 Scavenger collects Wheel. System corrupted: Component data lost. W-16 Scout sends out distress signal. K-01 Serf cleans the Terminal. M-13 Machinist repairs R-06 Scavenger. K-01 Serf destroyed. K-01 Serf collects debris. G-34 Mercenary destroyed. K-01 Serf collects debris. Map ----- +----------------------------------------------------+ | ?????????????????????????????????????????????????? | | ?????????????????????????????????????????????????? | | ?????????????????????????????????????????????????? | | ?????????????????????????????????????????????????? | | ?????????????????????????????????????????????????? | | ?????????????????????????????????????????????????? | | ?????????????????????????????????????????????????? | | ?????????????????????????????????????????????????? | | ?????????????????????????????????????????????????? | | ?????????????????????????????????????????????????? | | ?????????????????????????????? ? ????????????????? | | ?????????????????????????????# ? ##??????????????? | | ????????????????????????????# ##?????????????? | | ????????????????????????????# ??????????????? | | ????????????????????????????# T ??????????????? | | ????????????????????????????? ???????????????? | | ????????????????????????????? ???????????????? | | ?????????????????????????????# #???????????????? | | ?????????????????????????????#% #???????????????? | | ????????????????????#????????# #???????????????? | | ????????????????????# ???????# #???????????????? | | ????????????######??# ??????# ###?????????????? | | ???????????## ##+#######u #?????????????? | | ?????????? = u kk #?????????????? | | ?????????? <*% #?????????????? | | ?????????? g % @ #??????# ###??? | | ????????????# ##+####### %###### #??? | | ?????????????????????????????##### ! ^ #??? | | ?????????????????????????????????# %% ^^ T #??? | | ?????????????????????????????????# ! ^ #??? | | ?????????????????????????????????#%###### #??? | | ?????????????????????????????????#!#??????#+###??? | | ?????????????????????????????????#%#?????????????? | | ?????????????????????????????????#=#?????????????? | | ?????????????????????????????????# #?????????????? | | ?????????????????????????????????# #?????????????? | | ?????????????????????????????????#%#?????????????? | | ?????????????????????????????????#*#?????????????? | | ?????????????????????????????????# #?????????????? | | ?????????????????????????????????#%#?????????????? | | ????????????????????????????????##!##????????????? | | ????????????????????????????????# #????????????? | | ??????????????????????########### #????????????? | | ??????????????????????#[ = # #????????????? | | ??????????????????????# + #????????????? | | ??????????????????????# # #????????????? | | ??????????????????????# # #????????????? | | ??????????????????############### #######+####?? | | ??????????????????# #?? | | ??????????????????+ #?? | +----------------------------------------------------+ Best States ------------- Heat Dissipation 25 Energy Generation 10 Energy Capacity 125 Matter Stores 400 Matter Capacity 400 Sight Range 16 Terrain Scan Density 10 Evasion (%) 55 Item Schematics ----------------- None Robot Schematics ------------------ None Fabricated ------------ Nothing Alien Tech Used ----------------- None Achievements -------------- None Challenges ------------ None Game ------ Seed ThermicPhaseMonowheel Manual? 0 Play Time 00:09:23 Cumulative 2.1 hours Start 2024.08.25 @ 23:48:05 End 2024.08.25 @ 23:56:04 Sessions 1 Manual Loads 0 Difficulty Rogue Special Mode None Game No. 3 Rogue 3 Adventurer 0 Explorer 0 Win Type - Total 0 Types 0/0/0/0/0/0/0/0/0 Lore% 0 Gallery% 3 Achievement% 3 Wizard Run 0 Options --------- Layout 0 ASCII 0 Keyboard 1 Movement Numpad Keybinds 0 Fullscreen 1 Font 24/Smallcaps Map View 76x50 Zoom Use 0% Tactical HUD 0 Map Filters NONE Filters NONE Steam 1 RUN: 46c118b3-c566-4b81-b638-67ecc1d96112